[Event "Early-Titled-Tuesday-Blitz-May-28-2024"]
[Site "Chess.com"]
[Date "2024.05.28"]
[Round "3"]
[White "Blitz_Lover1"]
[Black "Matols"]
[Result "0-1"]
[WhiteElo "2540"]
[BlackElo "2367"]
[TimeControl "180+1"]
[EndTime "8:29:43 PDT"]
[Termination "Matols won by checkmate"]

1. e4 {[%clk 0:02:59.7]} 1... c6 {[%clk 0:03:00.2]} 2. Nf3 {[%clk 0:02:53]} 2...
d5 {[%clk 0:03:00.3]} 3. Nc3 {[%clk 0:02:53.3]} 3... dxe4 {[%clk 0:03:00.5]} 4.
Nxe4 {[%clk 0:02:54.2]} 4... Nf6 {[%clk 0:03:00.9]} 5. Nxf6+ {[%clk 0:02:54.1]}
5... exf6 {[%clk 0:03:00.7]} 6. d4 {[%clk 0:02:49.7]} 6... Bd6 {[%clk
0:03:00.8]} 7. Bd3 {[%clk 0:02:22.6]} 7... O-O {[%clk 0:03:00.7]} 8. O-O {[%clk
0:02:21.3]} 8... Re8 {[%clk 0:03:00.4]} 9. h3 {[%clk 0:02:20.7]} 9... Na6 {[%clk
0:02:57.1]} 10. c3 {[%clk 0:02:17.1]} 10... Nc7 {[%clk 0:02:56.6]} 11. Bd2
{[%clk 0:02:09.1]} 11... Nd5 {[%clk 0:02:55.4]} 12. Qc2 {[%clk 0:02:08.2]} 12...
g6 {[%clk 0:02:49.2]} 13. Rae1 {[%clk 0:02:06]} 13... Be6 {[%clk 0:02:45.5]} 14.
a3 {[%clk 0:02:04.7]} 14... Nf4 {[%clk 0:02:38.4]} 15. Bxf4 {[%clk 0:01:56.6]}
15... Bxf4 {[%clk 0:02:39.3]} 16. c4 {[%clk 0:01:53.1]} 16... Bc7 {[%clk
0:02:31.9]} 17. Rd1 {[%clk 0:01:51.9]} 17... Qd6 {[%clk 0:02:29.8]} 18. d5
{[%clk 0:01:43.8]} 18... cxd5 {[%clk 0:02:23.9]} 19. cxd5 {[%clk 0:01:44.7]}
19... Bd7 {[%clk 0:02:22.2]} 20. Qb3 {[%clk 0:01:27.3]} 20... Bb6 {[%clk
0:02:09.3]} 21. Bb5 {[%clk 0:01:21.6]} 21... Bxh3 {[%clk 0:01:46.6]} 22. Nd2
{[%clk 0:00:35.2]} 22... Re3 {[%clk 0:01:18.7]} 23. Nc4 {[%clk 0:00:18.7]} 23...
Rxb3 {[%clk 0:01:09.6]} 24. Nxd6 {[%clk 0:00:18]} 24... Bg4 {[%clk 0:01:03.3]}
25. Rde1 {[%clk 0:00:18.1]} 25... Rxb2 {[%clk 0:00:59.1]} 26. Be8 {[%clk
0:00:16.3]} 26... Be2 {[%clk 0:00:53.3]} 27. Bxf7+ {[%clk 0:00:13.9]} 27... Kg7
{[%clk 0:00:53.3]} 28. Be6 {[%clk 0:00:11.3]} 28... Bxf1 {[%clk 0:00:49.6]} 29.
Rxf1 {[%clk 0:00:12.2]} 29... Bc5 {[%clk 0:00:38.9]} 30. Nc4 {[%clk 0:00:11.8]}
30... Rc2 {[%clk 0:00:36.9]} 31. d6 {[%clk 0:00:11.2]} 31... Rd8 {[%clk
0:00:35]} 32. d7 {[%clk 0:00:11.6]} 32... f5 {[%clk 0:00:33.7]} 33. Na5 {[%clk
0:00:11.4]} 33... Rb2 {[%clk 0:00:31.6]} 34. Nc4 {[%clk 0:00:10.4]} 34... Kf6
{[%clk 0:00:31]} 35. Nxb2 {[%clk 0:00:10.1]} 35... Kxe6 {[%clk 0:00:31.4]} 36.
Nd3 {[%clk 0:00:09.4]} 36... Bb6 {[%clk 0:00:30.5]} 37. Nf4+ {[%clk 0:00:08]}
37... Kxd7 {[%clk 0:00:30.7]} 38. Rd1+ {[%clk 0:00:07.9]} 38... Ke8 {[%clk
0:00:29.5]} 39. Re1+ {[%clk 0:00:07]} 39... Kf7 {[%clk 0:00:29.3]} 40. Ne6
{[%clk 0:00:07.7]} 40... Rd2 {[%clk 0:00:27.8]} 41. Ng5+ {[%clk 0:00:06.8]}
41... Kf6 {[%clk 0:00:26.4]} 42. Nh3 {[%clk 0:00:07.7]} 42... Ra2 {[%clk
0:00:25.7]} 43. Re8 {[%clk 0:00:06.6]} 43... g5 {[%clk 0:00:24.6]} 44. Kh2
{[%clk 0:00:04.8]} 44... g4 {[%clk 0:00:24.7]} 45. Nf4 {[%clk 0:00:04.7]} 45...
Bc7 {[%clk 0:00:24.5]} 46. g3 {[%clk 0:00:04.7]} 46... Rxf2+ {[%clk 0:00:24]}
47. Kg1 {[%clk 0:00:05]} 47... Ra2 {[%clk 0:00:23.9]} 48. Nd5+ {[%clk
0:00:05.5]} 48... Kf7 {[%clk 0:00:23.1]} 49. Nxc7 {[%clk 0:00:06.4]} 49... Rc2
{[%clk 0:00:22.3]} 50. Rc8 {[%clk 0:00:07.3]} 50... Rc3 {[%clk 0:00:19.1]} 51.
Kf2 {[%clk 0:00:06.4]} 51... h5 {[%clk 0:00:18.4]} 52. Ke2 {[%clk 0:00:06.4]}
52... h4 {[%clk 0:00:17.5]} 53. gxh4 {[%clk 0:00:05.2]} 53... f4 {[%clk
0:00:17.5]} 54. Kf2 {[%clk 0:00:05.4]} 54... g3+ {[%clk 0:00:17.1]} 55. Kg2
{[%clk 0:00:05.6]} 55... Rc2+ {[%clk 0:00:17.3]} 56. Kg1 {[%clk 0:00:05.3]}
56... f3 {[%clk 0:00:17]} 57. Rf8+ {[%clk 0:00:04.6]} 57... Kxf8 {[%clk
0:00:16.5]} 58. Ne6+ {[%clk 0:00:05.5]} 58... Ke7 {[%clk 0:00:16.3]} 59. Nd4
{[%clk 0:00:05.6]} 59... Rc1# {[%clk 0:00:16.6]} 0-1

[Event "Early-Titled-Tuesday-Blitz-May-28-2024"]
[Site "Chess.com"]
[Date "2024.05.28"]
[Round "3"]
[White "laskakid"]
[Black "MikeWizard"]
[Result "0-1"]
[WhiteElo "2353"]
[BlackElo "2016"]
[TimeControl "180+1"]
[EndTime "8:29:43 PDT"]
[Termination "MikeWizard won on time"]

1. Nf3 {[%clk 0:03:00.9]} 1... Nf6 {[%clk 0:02:58.3]} 2. g3 {[%clk 0:03:00.6]}
2... g6 {[%clk 0:02:57.9]} 3. b3 {[%clk 0:03:00.9]} 3... Bg7 {[%clk 0:02:57.9]}
4. Bb2 {[%clk 0:03:00.9]} 4... O-O {[%clk 0:02:57.8]} 5. Bg2 {[%clk 0:03:00.2]}
5... d6 {[%clk 0:02:58]} 6. d4 {[%clk 0:02:59.6]} 6... Nbd7 {[%clk 0:02:56.1]}
7. O-O {[%clk 0:02:58.9]} 7... c5 {[%clk 0:02:56.2]} 8. c4 {[%clk 0:02:58]} 8...
Rb8 {[%clk 0:02:53.2]} 9. Nc3 {[%clk 0:02:56]} 9... a6 {[%clk 0:02:53.2]} 10.
dxc5 {[%clk 0:02:40]} 10... Nxc5 {[%clk 0:02:52.2]} 11. Nd4 {[%clk 0:02:39.4]}
11... Bg4 {[%clk 0:02:41.3]} 12. h3 {[%clk 0:02:34.7]} 12... Bd7 {[%clk
0:02:40.6]} 13. Kh2 {[%clk 0:02:31.7]} 13... Qa5 {[%clk 0:02:29.6]} 14. a3
{[%clk 0:02:21.3]} 14... Qc7 {[%clk 0:02:26.3]} 15. Rc1 {[%clk 0:02:16.9]} 15...
Ne6 {[%clk 0:02:22.7]} 16. Nd5 {[%clk 0:02:11.7]} 16... Qd8 {[%clk 0:02:14.1]}
17. Qd2 {[%clk 0:01:58.9]} 17... Nxd4 {[%clk 0:02:10.4]} 18. Bxd4 {[%clk
0:01:52.4]} 18... Nxd5 {[%clk 0:02:09.8]} 19. Bxg7 {[%clk 0:01:48.1]} 19... Kxg7
{[%clk 0:02:09.5]} 20. cxd5 {[%clk 0:01:47]} 20... Qb6 {[%clk 0:02:04.3]} 21.
Qb2+ {[%clk 0:01:41.2]} 21... Kg8 {[%clk 0:02:02.3]} 22. Rc4 {[%clk 0:01:40.9]}
22... Rbc8 {[%clk 0:01:56.9]} 23. Rfc1 {[%clk 0:01:24.2]} 23... Rxc4 {[%clk
0:01:55.4]} 24. Rxc4 {[%clk 0:01:24.3]} 24... Rc8 {[%clk 0:01:54.7]} 25. Rxc8+
{[%clk 0:01:16.7]} 25... Bxc8 {[%clk 0:01:53.9]} 26. Qc3 {[%clk 0:01:16.9]}
26... Qc5 {[%clk 0:01:49.1]} 27. Qxc5 {[%clk 0:01:14.5]} 27... dxc5 {[%clk
0:01:49.2]} 28. e4 {[%clk 0:01:12.3]} 28... e5 {[%clk 0:01:46]} 29. Bf1 {[%clk
0:01:10]} 29... Kf8 {[%clk 0:01:44.3]} 30. f4 {[%clk 0:01:06]} 30... f6 {[%clk
0:01:41.9]} 31. Kg2 {[%clk 0:01:04.8]} 31... Ke7 {[%clk 0:01:42]} 32. Kf3 {[%clk
0:01:04.9]} 32... Kd6 {[%clk 0:01:41.9]} 33. h4 {[%clk 0:01:05]} 33... b5 {[%clk
0:01:37.2]} 34. Ke3 {[%clk 0:01:00.4]} 34... Bb7 {[%clk 0:01:34.1]} 35. a4
{[%clk 0:00:55.4]} 35... bxa4 {[%clk 0:01:30]} 36. bxa4 {[%clk 0:00:55.4]} 36...
a5 {[%clk 0:01:30.1]} 37. Bb5 {[%clk 0:00:50.6]} 37... f5 {[%clk 0:01:25.6]} 38.
Bc4 {[%clk 0:00:29]} 38... Bc8 {[%clk 0:01:22.7]} 39. Kf3 {[%clk 0:00:26.8]}
39... fxe4+ {[%clk 0:01:20.9]} 40. Kxe4 {[%clk 0:00:27]} 40... Bf5+ {[%clk
0:01:20.4]} 41. Ke3 {[%clk 0:00:26.2]} 41... Bc2 {[%clk 0:01:18.1]} 42. fxe5+
{[%clk 0:00:17]} 42... Kxe5 {[%clk 0:01:17.8]} 43. Bb5 {[%clk 0:00:15.9]} 43...
Kxd5 {[%clk 0:01:16.4]} 44. Kd2 {[%clk 0:00:16.1]} 44... Bb3 {[%clk 0:01:10.9]}
45. Kc3 {[%clk 0:00:14.4]} 45... Bd1 {[%clk 0:01:08.4]} 46. Kd2 {[%clk
0:00:14.2]} 46... Bg4 {[%clk 0:01:07.7]} 47. Kc3 {[%clk 0:00:14.5]} 47... h6
{[%clk 0:01:05.2]} 48. Be8 {[%clk 0:00:13.2]} 48... Bf5 {[%clk 0:01:04.9]} 49.
Bb5 {[%clk 0:00:12.8]} 49... g5 {[%clk 0:00:53.2]} 50. hxg5 {[%clk 0:00:13]}
50... hxg5 {[%clk 0:00:53.4]} 51. Be8 {[%clk 0:00:12.7]} 51... Be6 {[%clk
0:00:50.5]} 52. Bb5 {[%clk 0:00:12]} 52... Ke5 {[%clk 0:00:50.3]} 53. Be2 {[%clk
0:00:11.1]} 53... Ke4 {[%clk 0:00:49.4]} 54. Bd1 {[%clk 0:00:10.7]} 54... Ke3
{[%clk 0:00:49.4]} 55. Bh5 {[%clk 0:00:09.3]} 55... Kf2 {[%clk 0:00:48.9]} 56.
g4 {[%clk 0:00:09.4]} 56... Kg3 {[%clk 0:00:49]} 57. Kd3 {[%clk 0:00:08.6]}
57... Kf4 {[%clk 0:00:48.9]} 58. Kc3 {[%clk 0:00:08.3]} 58... Bd7 {[%clk
0:00:46.5]} 59. Bf7 {[%clk 0:00:07]} 59... Bxa4 {[%clk 0:00:45.4]} 60. Kc4
{[%clk 0:00:07]} 60... Bd1 {[%clk 0:00:44.6]} 61. Kxc5 {[%clk 0:00:07.4]} 61...
Bxg4 {[%clk 0:00:44.5]} 62. Kb5 {[%clk 0:00:04.5]} 62... Bf3 {[%clk 0:00:43.8]}
63. Be6 {[%clk 0:00:04.5]} 63... Bg4 {[%clk 0:00:41.5]} 64. Bd5 {[%clk
0:00:03.9]} 64... Bf5 {[%clk 0:00:40]} 65. Kxa5 {[%clk 0:00:03.8]} 65... g4
{[%clk 0:00:40.1]} 66. Kb4 {[%clk 0:00:03.7]} 66... Be4 {[%clk 0:00:40]} 67. Be6
{[%clk 0:00:02.6]} 67... g3 {[%clk 0:00:40]} 68. Bh3 {[%clk 0:00:02.7]} 68...
Bf5 {[%clk 0:00:38.1]} 69. Bf1 {[%clk 0:00:01.8]} 69... Bg4 {[%clk 0:00:37.7]}
70. Kc3 {[%clk 0:00:01.6]} 70... Ke3 {[%clk 0:00:37.1]} 71. Kc4 {[%clk 0:00:01]}
71... Kf2 {[%clk 0:00:37.2]} 72. Bd3 {[%clk 0:00:01]} 72... g2 {[%clk
0:00:36.7]} 73. Be4 {[%clk 0:00:01.2]} 73... g1=Q {[%clk 0:00:36.1]} 0-1

[Event "Early-Titled-Tuesday-Blitz-May-28-2024"]
[Site "Chess.com"]
[Date "2024.05.28"]
[Round "3"]
[White "ahkashefi2800"]
[Black "RianKapriaga"]
[Result "0-1"]
[WhiteElo "2551"]
[BlackElo "2319"]
[TimeControl "180+1"]
[EndTime "8:29:44 PDT"]
[Termination "RianKapriaga won on time"]

1. d4 {[%clk 0:02:50.6]} 1... Nf6 {[%clk 0:02:59.8]} 2. Bg5 {[%clk 0:02:47.3]}
2... e6 {[%clk 0:02:59]} 3. e4 {[%clk 0:02:45.1]} 3... h6 {[%clk 0:02:59.4]} 4.
Bxf6 {[%clk 0:02:44.2]} 4... Qxf6 {[%clk 0:03:00.3]} 5. Nf3 {[%clk 0:02:41.8]}
5... d6 {[%clk 0:02:57.7]} 6. Nc3 {[%clk 0:02:31.5]} 6... a6 {[%clk 0:02:57.6]}
7. Bd3 {[%clk 0:02:30]} 7... g6 {[%clk 0:02:54.9]} 8. O-O {[%clk 0:02:28.4]}
8... Bg7 {[%clk 0:02:53.5]} 9. Re1 {[%clk 0:02:28.4]} 9... Qd8 {[%clk
0:02:48.9]} 10. e5 {[%clk 0:02:24.4]} 10... O-O {[%clk 0:02:44.7]} 11. Qe2
{[%clk 0:02:22.6]} 11... Nc6 {[%clk 0:02:42.7]} 12. Rad1 {[%clk 0:02:21.4]}
12... b5 {[%clk 0:02:38.9]} 13. Ne4 {[%clk 0:02:16.8]} 13... Nb4 {[%clk
0:02:33.9]} 14. c3 {[%clk 0:02:09.4]} 14... Nxd3 {[%clk 0:02:32]} 15. Qxd3
{[%clk 0:02:06.9]} 15... Bb7 {[%clk 0:02:31.2]} 16. a3 {[%clk 0:01:57]} 16...
Qe7 {[%clk 0:02:25]} 17. Qe3 {[%clk 0:01:53.6]} 17... Rfd8 {[%clk 0:02:21.2]}
18. exd6 {[%clk 0:01:25.7]} 18... cxd6 {[%clk 0:02:17.2]} 19. Qf4 {[%clk
0:01:25.3]} 19... a5 {[%clk 0:02:07]} 20. Ng3 {[%clk 0:01:08.1]} 20... Qf6
{[%clk 0:01:59.8]} 21. Qe3 {[%clk 0:00:52.1]} 21... b4 {[%clk 0:01:43.6]} 22.
axb4 {[%clk 0:00:52]} 22... axb4 {[%clk 0:01:44.5]} 23. Ne4 {[%clk 0:00:52.2]}
23... Qe7 {[%clk 0:01:43.6]} 24. h3 {[%clk 0:00:51.9]} 24... Bd5 {[%clk
0:01:38.1]} 25. Ned2 {[%clk 0:00:48.3]} 25... Rdc8 {[%clk 0:01:32.3]} 26. Qd3
{[%clk 0:00:48.1]} 26... Qc7 {[%clk 0:01:21.3]} 27. Rc1 {[%clk 0:00:42.2]} 27...
Ra2 {[%clk 0:01:15.1]} 28. c4 {[%clk 0:00:39.3]} 28... Bxf3 {[%clk 0:01:13.9]}
29. Qb3 {[%clk 0:00:21.9]} 29... Bxg2 {[%clk 0:00:55.4]} 30. Qxa2 {[%clk
0:00:21.7]} 30... Bxh3 {[%clk 0:00:55.1]} 31. Qb3 {[%clk 0:00:21.1]} 31... Bf5
{[%clk 0:00:48.7]} 32. Qe3 {[%clk 0:00:11]} 32... Qe7 {[%clk 0:00:31]} 33. Nf1
{[%clk 0:00:10.6]} 33... b3 {[%clk 0:00:26.3]} 34. Ng3 {[%clk 0:00:10.4]} 34...
Bc2 {[%clk 0:00:25.9]} 35. c5 {[%clk 0:00:04.9]} 35... dxc5 {[%clk 0:00:23.8]}
36. dxc5 {[%clk 0:00:05.8]} 36... Qxc5 {[%clk 0:00:23.3]} 37. Rb1 {[%clk
0:00:02.3]} 37... Bxb1 {[%clk 0:00:22.1]} 38. Rxb1 {[%clk 0:00:02.3]} 38... Qxe3
{[%clk 0:00:19.9]} 39. fxe3 {[%clk 0:00:03.2]} 39... Rc2 {[%clk 0:00:19.7]} 40.
Ne4 {[%clk 0:00:04.1]} 40... Rxb2 {[%clk 0:00:18.9]} 41. Rd1 {[%clk 0:00:04.8]}
41... Rc2 {[%clk 0:00:16.2]} 42. Rd8+ {[%clk 0:00:02]} 42... Kh7 {[%clk
0:00:16.7]} 43. Rb8 {[%clk 0:00:02.9]} 43... b2 {[%clk 0:00:17]} 44. Nd6 {[%clk
0:00:01.3]} 44... Rc1+ {[%clk 0:00:15.8]} 45. Kf2 {[%clk 0:00:01.2]} 45... b1=Q
{[%clk 0:00:15.6]} 46. Rxb1 {[%clk 0:00:01.7]} 46... Rxb1 {[%clk 0:00:16.5]} 47.
Nxf7 {[%clk 0:00:01.8]} 47... Rb5 {[%clk 0:00:14.1]} 48. Nd8 {[%clk 0:00:01]}
48... Rb6 {[%clk 0:00:13.3]} 49. Ke2 {[%clk 0:00:01.9]} 49... Bf6 {[%clk
0:00:11.3]} 50. Nf7 {[%clk 0:00:01.9]} 50... Kg7 {[%clk 0:00:11.3]} 0-1

[Event "Early-Titled-Tuesday-Blitz-May-28-2024"]
[Site "Chess.com"]
[Date "2024.05.28"]
[Round "3"]
[White "Grandmaster1369"]
[Black "NajdorfPlayerc5"]
[Result "1/2-1/2"]
[WhiteElo "2800"]
[BlackElo "2458"]
[TimeControl "180+1"]
[EndTime "8:29:47 PDT"]
[Termination "Game drawn by repetition"]

1. d4 {[%clk 0:03:00.9]} 1... Nf6 {[%clk 0:02:59.2]} 2. c4 {[%clk 0:03:00.1]}
2... e6 {[%clk 0:02:58.9]} 3. Nc3 {[%clk 0:03:00.1]} 3... Bb4 {[%clk 0:02:58.1]}
4. a3 {[%clk 0:02:59.4]} 4... Bxc3+ {[%clk 0:02:57.9]} 5. bxc3 {[%clk
0:03:00.2]} 5... b6 {[%clk 0:02:45.9]} 6. f3 {[%clk 0:02:59.1]} 6... c5 {[%clk
0:02:37.7]} 7. e4 {[%clk 0:02:58.8]} 7... d6 {[%clk 0:02:37.5]} 8. Bd3 {[%clk
0:02:58]} 8... Nc6 {[%clk 0:02:36.6]} 9. Ne2 {[%clk 0:02:56.1]} 9... e5 {[%clk
0:02:35.6]} 10. O-O {[%clk 0:02:54.9]} 10... O-O {[%clk 0:02:27]} 11. Bg5 {[%clk
0:02:52]} 11... Ba6 {[%clk 0:02:09.9]} 12. f4 {[%clk 0:02:48.3]} 12... exd4
{[%clk 0:01:38.3]} 13. cxd4 {[%clk 0:02:47.1]} 13... cxd4 {[%clk 0:01:39.2]} 14.
e5 {[%clk 0:02:43.7]} 14... dxe5 {[%clk 0:01:36.8]} 15. fxe5 {[%clk 0:02:43.1]}
15... Nxe5 {[%clk 0:01:37.7]} 16. Bxf6 {[%clk 0:02:37.5]} 16... gxf6 {[%clk
0:01:38.6]} 17. Ng3 {[%clk 0:02:36.5]} 17... Kh8 {[%clk 0:01:21.1]} 18. Nh5
{[%clk 0:02:31.3]} 18... Rg8 {[%clk 0:00:56.7]} 19. Nxf6 {[%clk 0:02:24.2]}
19... Rg7 {[%clk 0:00:53.2]} 20. Bxh7 {[%clk 0:02:18.8]} 20... Bb7 {[%clk
0:00:32.7]} 21. Be4 {[%clk 0:02:11.3]} 21... Bxe4 {[%clk 0:00:26.4]} 22. Qh5+
{[%clk 0:02:07.9]} 22... Bh7 {[%clk 0:00:13.9]} 23. Qxe5 {[%clk 0:02:07.2]}
23... Qb8 {[%clk 0:00:09.3]} 24. Qh5 {[%clk 0:02:02.9]} 24... Qd6 {[%clk
0:00:06.8]} 25. Rae1 {[%clk 0:01:56.6]} 25... Qc6 {[%clk 0:00:06.6]} 26. Rf2
{[%clk 0:01:52.7]} 26... d3 {[%clk 0:00:06.7]} 27. Qe5 {[%clk 0:01:51.1]} 27...
Rd8 {[%clk 0:00:02.4]} 28. Ne8 {[%clk 0:01:46.8]} 28... f6 {[%clk 0:00:01.6]}
29. Nxf6 {[%clk 0:01:44.5]} 29... d2 {[%clk 0:00:01.8]} 30. Rd1 {[%clk
0:01:43.9]} 30... Qd6 {[%clk 0:00:01.7]} 31. Qxd6 {[%clk 0:01:42.2]} 31... Rxd6
{[%clk 0:00:02.6]} 32. Ne8 {[%clk 0:01:42.2]} 32... Bc2 {[%clk 0:00:02.5]} 33.
Nxd6 {[%clk 0:01:39.2]} 33... Bxd1 {[%clk 0:00:02.8]} 34. Rxd2 {[%clk
0:01:39.8]} 34... Bf3 {[%clk 0:00:02.5]} 35. Nf5 {[%clk 0:01:37.3]} 35... Rg5
{[%clk 0:00:02.4]} 36. Ne3 {[%clk 0:01:29]} 36... Bc6 {[%clk 0:00:01.5]} 37. Rd6
{[%clk 0:01:23.2]} 37... Be8 {[%clk 0:00:01]} 38. Rd8 {[%clk 0:01:22.7]} 38...
Re5 {[%clk 0:00:01.5]} 39. Kf2 {[%clk 0:01:22.8]} 39... Kg7 {[%clk 0:00:01.7]}
40. g4 {[%clk 0:01:19.9]} 40... Bf7 {[%clk 0:00:02]} 41. Rd7 {[%clk 0:01:19.8]}
41... Ra5 {[%clk 0:00:01.9]} 42. Nf5+ {[%clk 0:01:17.2]} 42... Kf6 {[%clk
0:00:01.1]} 43. Nd6 {[%clk 0:01:13.5]} 43... Be6 {[%clk 0:00:01]} 44. Rc7 {[%clk
0:01:04.1]} 44... Rxa3 {[%clk 0:00:01.2]} 45. Ne8+ {[%clk 0:00:57.3]} 45... Ke5
{[%clk 0:00:01]} 46. Re7 {[%clk 0:00:57.1]} 46... Ra2+ {[%clk 0:00:01.5]} 47.
Kg3 {[%clk 0:00:57.3]} 47... Rc2 {[%clk 0:00:01]} 48. Ng7 {[%clk 0:00:53.2]}
48... Rc3+ {[%clk 0:00:01.5]} 49. Kh4 {[%clk 0:00:52.9]} 49... Kf6 {[%clk
0:00:02.1]} 50. Rxe6+ {[%clk 0:00:52.3]} 50... Kxg7 {[%clk 0:00:02.6]} 51. Re7+
{[%clk 0:00:52.7]} 51... Kf6 {[%clk 0:00:02.7]} 52. Rxa7 {[%clk 0:00:52.8]}
52... Rxc4 {[%clk 0:00:03.1]} 53. Rb7 {[%clk 0:00:52.2]} 53... Rb4 {[%clk
0:00:03.6]} 54. Kh5 {[%clk 0:00:52]} 54... Rb2 {[%clk 0:00:03.1]} 55. h4 {[%clk
0:00:52.4]} 55... b5 {[%clk 0:00:03.3]} 56. g5+ {[%clk 0:00:52.6]} 56... Kf5
{[%clk 0:00:03.9]} 57. Kh6 {[%clk 0:00:49.9]} 57... Rh2 {[%clk 0:00:02.1]} 58.
h5 {[%clk 0:00:50.2]} 58... Rb2 {[%clk 0:00:01.8]} 59. g6 {[%clk 0:00:50.6]}
59... b4 {[%clk 0:00:02.3]} 60. g7 {[%clk 0:00:50.6]} 60... Rg2 {[%clk
0:00:02.4]} 61. Rxb4 {[%clk 0:00:51.1]} 61... Kf6 {[%clk 0:00:01.5]} 62. Rb6+
{[%clk 0:00:50.9]} 62... Kf7 {[%clk 0:00:01.9]} 63. Rg6 {[%clk 0:00:51.8]} 63...
Rxg6+ {[%clk 0:00:01]} 64. hxg6+ {[%clk 0:00:46.9]} 64... Kg8 {[%clk 0:00:01.4]}
65. Kh5 {[%clk 0:00:47.2]} 65... Kxg7 {[%clk 0:00:02.3]} 66. Kg5 {[%clk
0:00:48.1]} 66... Kg8 {[%clk 0:00:02.8]} 67. Kf6 {[%clk 0:00:49]} 67... Kf8
{[%clk 0:00:03.3]} 68. Kf5 {[%clk 0:00:49]} 68... Kg7 {[%clk 0:00:03.6]} 69. Kg5
{[%clk 0:00:49.9]} 69... Kg8 {[%clk 0:00:03.9]} 70. Kf6 {[%clk 0:00:50.8]} 70...
Kf8 {[%clk 0:00:04.2]} 71. Ke6 {[%clk 0:00:49.8]} 71... Kg7 {[%clk 0:00:04.3]}
72. Kf5 {[%clk 0:00:50.7]} 72... Kg8 {[%clk 0:00:03.9]} 73. Kg5 {[%clk
0:00:51.6]} 73... Kg7 {[%clk 0:00:03.7]} 74. Kh5 {[%clk 0:00:51.7]} 74... Kg8
{[%clk 0:00:03.9]} 75. Kh6 {[%clk 0:00:52.6]} 75... Kh8 {[%clk 0:00:04.2]} 76.
Kg5 {[%clk 0:00:52.6]} 76... Kg7 {[%clk 0:00:04.6]} 77. Kh5 {[%clk 0:00:53.5]}
77... Kg8 {[%clk 0:00:04.6]} 78. Kg5 {[%clk 0:00:54.4]} 78... Kg7 {[%clk
0:00:04.5]} 1/2-1/2

[Event "Early-Titled-Tuesday-Blitz-May-28-2024"]
[Site "Chess.com"]
[Date "2024.05.28"]
[Round "3"]
[White "js20000"]
[Black "jcibarra"]
[Result "1/2-1/2"]
[WhiteElo "2688"]
[BlackElo "2900"]
[TimeControl "180+1"]
[EndTime "8:29:50 PDT"]
[Termination "Game drawn - insufficient material"]

1. b3 {[%clk 0:03:00.9]} 1... e5 {[%clk 0:02:57.3]} 2. Bb2 {[%clk 0:03:01]} 2...
Nc6 {[%clk 0:02:57.8]} 3. c4 {[%clk 0:02:58.8]} 3... Nf6 {[%clk 0:02:48.2]} 4.
e3 {[%clk 0:02:54.9]} 4... g6 {[%clk 0:02:47.5]} 5. Nf3 {[%clk 0:02:53.8]} 5...
d6 {[%clk 0:02:45.4]} 6. d4 {[%clk 0:02:52.9]} 6... e4 {[%clk 0:02:44.3]} 7.
Nfd2 {[%clk 0:02:52.2]} 7... Bf5 {[%clk 0:02:40.3]} 8. h3 {[%clk 0:02:50.9]}
8... h5 {[%clk 0:02:39.6]} 9. g3 {[%clk 0:02:41]} 9... Bg7 {[%clk 0:02:37.7]}
10. a3 {[%clk 0:02:39.6]} 10... a5 {[%clk 0:02:34.2]} 11. Nc3 {[%clk 0:02:38]}
11... O-O {[%clk 0:02:31.3]} 12. Bg2 {[%clk 0:02:36.8]} 12... Re8 {[%clk
0:02:27.5]} 13. Qc2 {[%clk 0:02:29.4]} 13... Qe7 {[%clk 0:01:58.3]} 14. Nd5
{[%clk 0:02:21.3]} 14... Nxd5 {[%clk 0:01:51.8]} 15. cxd5 {[%clk 0:02:22.2]}
15... Nxd4 {[%clk 0:01:51.4]} 16. Bxd4 {[%clk 0:01:56.5]} 16... Bxd4 {[%clk
0:01:51]} 17. Rc1 {[%clk 0:01:50.2]} 17... Bc5 {[%clk 0:01:51.1]} 18. g4 {[%clk
0:01:44.6]} 18... Qg5 {[%clk 0:01:19.4]} 19. gxf5 {[%clk 0:01:29.3]} 19... Qxg2
{[%clk 0:01:18.2]} 20. Ke2 {[%clk 0:01:29.9]} 20... Bxe3 {[%clk 0:00:54.1]} 21.
Kxe3 {[%clk 0:01:29.6]} 21... Qg5+ {[%clk 0:00:54.1]} 22. Ke2 {[%clk 0:01:13.4]}
22... Qxf5 {[%clk 0:00:53.4]} 23. Rcg1 {[%clk 0:00:27.3]} 23... Re5 {[%clk
0:00:48]} 24. Rg3 {[%clk 0:00:14.5]} 24... Rae8 {[%clk 0:00:43.4]} 25. Nc4
{[%clk 0:00:13.8]} 25... h4 {[%clk 0:00:27.3]} 26. Rc3 {[%clk 0:00:07.5]} 26...
Rxd5 {[%clk 0:00:25.7]} 27. Rd1 {[%clk 0:00:07.5]} 27... Rd3 {[%clk 0:00:19.2]}
28. Ne3 {[%clk 0:00:07.9]} 28... Qf3+ {[%clk 0:00:18.5]} 29. Ke1 {[%clk
0:00:08.3]} 29... Qh1+ {[%clk 0:00:12.9]} 30. Ke2 {[%clk 0:00:08.5]} 30... Qf3+
{[%clk 0:00:11.9]} 31. Ke1 {[%clk 0:00:08.7]} 31... Rxc3 {[%clk 0:00:10.2]} 32.
Qxc3 {[%clk 0:00:08.9]} 32... Qxh3 {[%clk 0:00:10.9]} 33. Nd5 {[%clk 0:00:08.7]}
33... Qxc3+ {[%clk 0:00:06.9]} 34. Nxc3 {[%clk 0:00:09.6]} 34... Kg7 {[%clk
0:00:06.5]} 35. Nd5 {[%clk 0:00:09.9]} 35... c6 {[%clk 0:00:05.8]} 36. Ne3
{[%clk 0:00:09.4]} 36... d5 {[%clk 0:00:05.8]} 37. b4 {[%clk 0:00:08.8]} 37...
axb4 {[%clk 0:00:05.6]} 38. axb4 {[%clk 0:00:09.7]} 38... f5 {[%clk 0:00:06]}
39. b5 {[%clk 0:00:10.1]} 39... h3 {[%clk 0:00:04.4]} 40. Kf1 {[%clk 0:00:09.6]}
40... f4 {[%clk 0:00:03.7]} 41. Ng4 {[%clk 0:00:09.8]} 41... Ra8 {[%clk
0:00:01.9]} 42. bxc6 {[%clk 0:00:09.9]} 42... bxc6 {[%clk 0:00:02.8]} 43. Rc1
{[%clk 0:00:10.3]} 43... Kf7 {[%clk 0:00:02.8]} 44. Rxc6 {[%clk 0:00:09.3]}
44... Ra1+ {[%clk 0:00:02.9]} 45. Ke2 {[%clk 0:00:09.9]} 45... f3+ {[%clk
0:00:02.3]} 46. Ke3 {[%clk 0:00:10]} 46... Rg1 {[%clk 0:00:03.1]} 47. Ne5+
{[%clk 0:00:09.4]} 47... Kg7 {[%clk 0:00:02.7]} 48. Rc7+ {[%clk 0:00:09.6]}
48... Kh6 {[%clk 0:00:03.3]} 49. Nf7+ {[%clk 0:00:09.2]} 49... Kh5 {[%clk
0:00:03.8]} 50. Ne5 {[%clk 0:00:09.9]} 50... Kg5 {[%clk 0:00:02.7]} 51. Rh7
{[%clk 0:00:09.9]} 51... Kf5 {[%clk 0:00:03.2]} 52. Nc6 {[%clk 0:00:06.8]} 52...
Re1+ {[%clk 0:00:03.7]} 53. Kd4 {[%clk 0:00:07]} 53... Re2 {[%clk 0:00:03.8]}
54. Kxd5 {[%clk 0:00:06.6]} 54... Rd2+ {[%clk 0:00:03.6]} 55. Nd4+ {[%clk
0:00:06.1]} 55... Kf4 {[%clk 0:00:03.6]} 56. Rh4+ {[%clk 0:00:04.8]} 56... Kg5
{[%clk 0:00:03.5]} 57. Rxh3 {[%clk 0:00:05.4]} 57... Rxf2 {[%clk 0:00:04.1]} 58.
Kxe4 {[%clk 0:00:05.6]} 58... Kg4 {[%clk 0:00:03.9]} 59. Rxf3 {[%clk 0:00:05.7]}
59... Rxf3 {[%clk 0:00:02.4]} 60. Nxf3 {[%clk 0:00:06.6]} 60... Kg3 {[%clk
0:00:02.8]} 61. Ne5 {[%clk 0:00:06.5]} 61... g5 {[%clk 0:00:02.9]} 62. Nf7
{[%clk 0:00:07.1]} 62... g4 {[%clk 0:00:03.3]} 63. Nh6 {[%clk 0:00:07.7]} 63...
Kh4 {[%clk 0:00:03.9]} 64. Nxg4 {[%clk 0:00:08.6]} 1/2-1/2